{"text_format":"1","workbook":"xlsx","n_sheets":3,"sheets":["Для заполнения"," Для заполнения 2","Лист3"],"not_rendered":{"charts":0,"images":0,"macros":0,"external_links":0,"defined_names":2,"comments":0,"pivot_tables":0},"unopened":[],"bounds":{"document_bytes":16777216,"sheet_cells":100000,"rows_first":2000,"rows_last":500,"rows_between":2000,"halvings":0,"cell_chars":16384,"cell_head_chars":4096},"cells_cut":0,"cells_raw":0,"read":"whole","date_system":"1900"}

{"sheet":"Для заполнения","index":0,"n_rows":18,"n_cols":10,"rows_kept":18,"cut":false,"hidden":false,"merged":[[0,0,0,8],[1,0,1,8],[15,1,15,2],[15,4,15,5],[17,0,18,2],[4,0,4,9],[6,0,6,9],[9,0,9,9],[13,0,13,4],[14,1,14,2],[14,4,14,5]]}
["Форма перечня спортивной инфраструктуры всех форм собственности, независимо от их организационно-правовой формы, действующие и находящиеся на реконструкции или капитальном ремонте, отдельно стоящие или входящие в состав комплексных сооружений"]
["(информация о спортивной инфраструктуре, их площади, ЕПС, ФЗ и МС должна соответствовать сведениям, указанным в разделе 3 формы № 1 –ФК)"]
[]
["№ п/п","Наименование спортивного сооружения с указанием принадлежности","Адрес спортивного сооружения","длина","ширина","Площадь спортивного сооружения, м2 (указывается площадь спортивных залов, плоскостных спортивных сооружений, площадь зеркала воды плавательных бассейнов)","Единовременная пропускная способность (ЕПС) ","Загруженность (ФЗ), чел.    ","мощность (МС), чел","собственность (муниципальная, региональная, федеральная, иная "]
["СПОРТИВНЫЕ ЗАЛЫ"]
[1,"\"Зал бокса\" при МАУ  ДО  ДЮСШ","618250, Пермский край, ул.им.газ. \"Правда\" 38а",23.55,11.65,{"$f":"D6*E6","v":274.35750000000002},15,{"$f":"55*2*6*52","v":34320},{"$f":"15*7*365","v":38325},"муниципальная"]
["ПЛОСКОСТНЫЕ СПОРТИВНЫЕ СООРУЖЕНИЯ"]
[2,"Уличная площадка для занятий физической культурой при Ледовой арене","61825, Пермский край, г. Губаха, пер. Мечты, 3",6,5.5,{"$f":"D8*E8","v":33},17,{"$f":"30*2*7*52","v":21840},{"$f":"17*12*365","v":74460},"муниципальная"]
[3,"Уличная площадка для занятий физической культурой при МАУ  ДО  ДЮСШ","618250, Пермский край, ул.им.газ. \"Правда\" 38а",15,10,{"$f":"D9*E9","v":150},17,{"$f":"30*2*7*52","v":21840},{"$f":"17*12*365","v":74460},"муниципальная"]
["ДРУГИЕ"]
[4,"Помещение для занятий ОФП при МАУ  ДО  ДЮСШ","618250, Пермский край, пр. Ленина 63",14.16,5.5,{"$f":"D11*E11","v":77.88},12,{"$f":"70*1*7*52","v":25480},{"$f":"12*6*365","v":26280},"муниципальная"]
[5,"Помещение для занятий ОФП при МАУ  ДО  ДЮСШ","618250, Пермский край, пр. Ленина 63",16.68,5.5,{"$f":"D12*E12","v":91.74},12,{"$f":"70*1*7*52","v":25480},{"$f":"12*6*365","v":26280},"муниципальная"]
[6,"Помещение для занятий на силовых тренажерах при МАУ  ДО  ДЮСШ","618250, Пермский край, пр. Ленина 63",11.68,5.51,64.356799999999993,18,{"$f":"20*1*7*52","v":7280},{"$f":"18*4*365","v":26280},"муниципальная"]
["ИТОГО",null,null,null,null,{"$f":"F13+F12+F11+F9+F8+F6","v":691.33429999999998},{"$f":"G13+G12+G11+G9+G8+G6","v":91},{"$f":"H13+H12+H11+H9+H8+H6","v":136240},{"$f":"I13+I12+I11+I9+I8+I6","v":266085}]
[null,"Директор МАУ  ДО  ДЮСШ",null,null,"К.В. Макаров"]
[null,"(должность)  ",null,null,"(Ф.И.О.)  ",null,null,"(подпись)"]
[]
["ФИО исполнителя, телефон (с кодом)",null,null,"8-34-248-333-07"]

{"sheet":" Для заполнения 2","index":1,"n_rows":15,"n_cols":12,"rows_kept":15,"cut":false,"hidden":false,"merged":[[9,4,9,5],[10,1,10,2],[10,4,10,5],[14,0,15,2],[0,12,5,45],[4,0,4,11],[0,0,0,3],[1,0,1,3],[6,0,6,1],[7,1,7,2],[8,1,8,2],[9,1,9,2]]}
["Крупные спортивные объекты на территории _____________ Пермского края"]
[]
[]
["№ п/п","Наименование спортивного сооружения с указанием принадлежности","Адрес спортивного сооружения","Единовременная пропускная способность (ЕПС) ","собственность (муниципальная, региональная, федеральная, иная ","Состояние объекта (удовлетворительное, аварийное, отличное)","Дата ввода объекта и дата последней реконструкции объекта","Категория опасности (в соотвествии с паспортом безопасности)","Дата утверждения паспорта безопасности  ","Доступная среда для маломобильных категорий населения (обеспеченность объекта спорта необходимым инвентарем оборудованием, наличие пандуса)","Включение объекта во Всероссийский реестр объектов сопрта(указать дату включения)","Контактные данные руководителя объекта ( номер телефона, эл. почта)"]
["КРЫТЫЕ КАТКИ"]
[1,"ледовая арена ","61825, Пермский край, г. Губаха, пер. Мечты, 3",37,"муниципальная","отличное","2019-04-18","2 категория","2019-06-10","доступна для моломобильных групп, пандус имеется","2019-10-08","8-34-24-457-02, 40675@dr.ru"]
["ИТОГО"]
[]
[]
[null,"Директор МАУ  ДО  ДЮСШ",null,null,"К.В. Макаров"]
[null,"(должность)  ",null,null,"(Ф.И.О.)  ",null,null,"(подпись)"]
[]
[]
[]
["ФИО исполнителя, телефон (с кодом)",null,null,"8-34-248-333-07"]

{"sheet":"Лист3","index":2,"n_rows":0,"n_cols":0,"rows_kept":0,"cut":false,"hidden":false,"merged":[]}